[Event "RUS-chT Blitz Women 2018"]
[Site "Sochi"]
[Date "2018.10.10"]
[Round "5"]
[White "Nebolsina, Vera"]
[Black "Maletina, Tatiana"]
[Result "0-1"]
[ECO "C01"]
[WhiteElo "2220"]
[BlackElo "2270"]
[Annotator "NA"]
[PlyCount "140"]
[EventDate "2018.10.10"]
[EventType "swiss"]
[EventCountry "RUS"]
[SourceTitle "playchess.com"]
[Source "ChessBase"]
[SourceQuality "1"]
[TimeControl "180+2"]

1. e4 {[%emt 0:00:00]} e6 {[%emt 0:00:00]} 2. d4 {[%emt 0:00:00]} d5 {[%emt 0:00:00]} 3. exd5 {[%emt 0:00:01]} exd5 {[%emt 0:00:01]} 4. Nf3 {[%emt 0:00:02]} Bd6 {[%emt 0:00:01]} 5. c4 {[%emt 0:00:02]} Nf6 {[%emt 0:00:06]} 6. Nc3 {[%emt 0:00:02]} O-O {[%emt 0:00:03]} 7. Be2 {[%emt 0:00:08]} dxc4 {[%emt 0:00:02]} 8. Bxc4 {[%emt 0:00:05]} Bg4 {[%emt 0:00:04]} 9. O-O {[%emt 0:00:06]} h6 {[%emt 0:00:01]} 10. Qd3 {[%emt 0:00:16]} Nc6 {[%emt 0:00:04]} 11. Ne2 {[%emt 0:00:12]} Nb4 {[%emt 0:00:24]} 12. Qb3 {[%emt 0:00:15]} c6 {[%emt 0:00:08]} 13. h3 {[%emt 0:00:06]} Bxf3 {[%emt 0:00:19]} 14. Qxf3 {[%emt 0:00:02]} Nbd5 {[%emt 0:00:01]} 15. Nf4 {[%emt 0:00:09]} Nxf4 {[%emt 0:00:15]} 16. Bxf4 {[%emt 0:00:01]} Bxf4 {[%emt 0:00:01]} 17. Qxf4 {[%emt 0:00:01]} Qd7 {[%emt 0:00:01]} 18. Rad1 {[%emt 0:00:06]} Rad8 {[%emt 0:00:01]} 19. Rfe1 {[%emt 0:00:08]} Rfe8 {[%emt 0:00:02]} 20. Re3 {[%emt 0:00:12]} Nd5 {[%emt 0:00:02]} 21. Bxd5 {[%emt 0:00:03]} Qxd5 {[%emt 0:00:01]} 22. a3 {[%emt 0:00:11]} c5 {[%emt 0:00:10]} 23. Rxe8+ {[%emt 0:00:16]} Rxe8 {[%emt 0:00:01]} 24. Qg4 {[%emt 0:00:06]} b6 {[%emt 0:00:26]} 25. dxc5 {[%emt 0:00:05]} Qxc5 {[%emt 0:00:01]} 26. Qd4 {[%emt 0:00:16]} Re1+ {[%emt 0:00:16]} 27. Kh2 {[%emt 0:00:01]} Rxd1 {[%emt 0:00:05]} 28. Qxd1 {[%emt 0:00:01]} Qxf2 {[%emt 0:00:01]} 29. Qd8+ {[%emt 0:00:02]} Kh7 {[%emt 0:00:00]} 30. Qd3+ {[%emt 0:00:02]} g6 {[%emt 0:00:02]} 31. Qd7 {[%emt 0:00:04]} a5 {[%emt 0:00:04]} 32. b4 {[%emt 0:00:07]} axb4 {[%emt 0:00:02]} 33. axb4 {[%emt 0:00:02]} h5 {[%emt 0:00:02]} 34. b5 {[%emt 0:00:15]} h4 {[%emt 0:00:02]} 35. Qd6 {[%emt 0:00:02]} g5 {[%emt 0:00:21]} 36. Qd3+ {[%emt 0:00:04]} Kh6 {[%emt 0:00:03]} 37. Qd6+ {[%emt 0:00:02]} Kg7 {[%emt 0:00:05]} 38. Qd7 {[%emt 0:00:12]} Kg6 {[%emt 0:00:05]} 39. Qd3+ {[%emt 0:00:06]} Kg7 {[%emt 0:00:08]} 40. Qd7 {[%emt 0:00:01]} Qf4+ {[%emt 0:00:05]} 41. Kh1 {[%emt 0:00:02]} Qf6 {[%emt 0:00:10]} 42. Qd5 {[%emt 0:00:08]} Kh6 {[%emt 0:00:01]} 43. Qa8 {[%emt 0:00:08]} Qf1+ {[%emt 0:00:05]} 44. Kh2 {[%emt 0:00:01]} Qxb5 {[%emt 0:00:02]} 45. Qh8+ {[%emt 0:00:04]} Kg6 {[%emt 0:00:01]} 46. Qg8+ {[%emt 0:00:01]} Kf6 {[%emt 0:00:01]} 47. Qh8+ {[%emt 0:00:02]} Ke7 {[%emt 0:00:01]} 48. Qb8 {[%emt 0:00:05]} f6 {[%emt 0:00:03]} 49. Qc7+ {[%emt 0:00:01]} Ke6 {[%emt 0:00:02]} 50. Qc8+ {[%emt 0:00:02]} Qd7 {[%emt 0:00:03]} 51. Qc4+ {[%emt 0:00:02]} Ke7 {[%emt 0:00:02]} 52. Qg8 {[%emt 0:00:02]} Qe6 {[%emt 0:00:05]} 53. Qh7+ {[%emt 0:00:05]} Kd6 {[%emt 0:00:01]} 54. Qb7 {[%emt 0:00:03]} Kc5 {[%emt 0:00:03]} 55. Qc7+ {[%emt 0:00:03]} Kb4 {[%emt 0:00:01]} 56. Qc2 {[%emt 0:00:03]} Qe5+ {[%emt 0:00:02]} 57. Kh1 {[%emt 0:00:01]} b5 {[%emt 0:00:01]} 58. Qd2+ {[%emt 0:00:03]} Ka3 {[%emt 0:00:03]} 59. Qd3+ {[%emt 0:00:02]} Ka4 {[%emt 0:00:02]} 60. Qc2+ {[%emt 0:00:01]} Ka5 {[%emt 0:00:03]} 61. Qd2+ {[%emt 0:00:01]} b4 {[%emt 0:00:01]} 62. Qd8+ {[%emt 0:00:02]} Ka4 {[%emt 0:00:02]} 63. Qa8+ {[%emt 0:00:03]} Kb3 {[%emt 0:00:02]} 64. Qf3+ {[%emt 0:00:01]} Ka2 {[%emt 0:00:03]} 65. Qa8+ {[%emt 0:00:03]} Kb1 {[%emt 0:00:02]} 66. Qa4 {[%emt 0:00:02]} Qc3 {[%emt 0:00:04]} 67. Kh2 {[%emt 0:00:04]} b3 {[%emt 0:00:03]} 68. Qe4+ {[%emt 0:00:02]} Ka2 {[%emt 0:00:07]} 69. Qa4+ {[%emt 0:00:01]} Kb2 {[%emt 0:00:02]} 70. Qe4 {[%emt 0:00:02]} Qe5+ {[%emt 0:00:01]} 0-1

[Event "RUS-chT Blitz Women 2018"]
[Site "Sochi"]
[Date "2018.10.10"]
[Round "8"]
[White "Goncharova, Natalia Olegovna"]
[Black "Sirotkina, Elizaveta"]
[Result "1-0"]
[ECO "B53"]
[WhiteElo "2249"]
[BlackElo "1234"]
[Annotator "RC"]
[PlyCount "104"]
[EventDate "2018.10.10"]
[EventType "swiss"]
[EventCountry "RUS"]
[SourceTitle "playchess.com"]
[Source "ChessBase"]
[SourceQuality "1"]
[TimeControl "180+2"]

1. e4 {[%emt 0:00:00]} c5 {[%emt 0:00:00]} 2. Nf3 {[%emt 0:00:01]} d6 {[%emt 0:00:00]} 3. d4 {[%emt 0:00:01]} cxd4 {[%emt 0:00:02]} 4. Qxd4 {[%emt 0:00:02]} Nc6 {[%emt 0:00:02]} 5. Bb5 {[%emt 0:00:01]} Bd7 {[%emt 0:00:01]} 6. Bxc6 {[%emt 0:00:02]} Bxc6 {[%emt 0:00:02]} 7. c4 {[%emt 0:00:01]} Nf6 {[%emt 0:00:01]} 8. Nc3 {[%emt 0:00:01]} e6 {[%emt 0:00:06]} 9. O-O {[%emt 0:00:02]} Be7 {[%emt 0:00:01]} 10. Rd1 {[%emt 0:00:03]} O-O {[%emt 0:00:05]} 11. Bg5 {[%emt 0:00:05]} h6 {[%emt 0:00:10]} 12. Bh4 {[%emt 0:00:14]} Qc7 {[%emt 0:00:11]} 13. Rac1 {[%emt 0:00:07]} Rad8 {[%emt 0:00:05]} 14. e5 {[%emt 0:00:08]} dxe5 {[%emt 0:00:05]} 15. Qxe5 {[%emt 0:00:02]} Qxe5 {[%emt 0:00:08]} 16. Nxe5 {[%emt 0:00:01]} Rxd1+ {[%emt 0:00:21]} 17. Rxd1 {[%emt 0:00:01]} Rc8 {[%emt 0:00:10]} 18. Nxc6 {[%emt 0:00:04]} Rxc6 {[%emt 0:00:05]} 19. b3 {[%emt 0:00:03]} Ne4 {[%emt 0:00:30]} 20. Bxe7 {[%emt 0:00:12]} Nxc3 {[%emt 0:00:01]} 21. Rd2 {[%emt 0:00:02]} Rc7 {[%emt 0:00:05]} 22. Bb4 {[%emt 0:00:04]} Ne4 {[%emt 0:00:04]} 23. Rd4 {[%emt 0:00:06]} Nf6 {[%emt 0:00:03]} 24. f3 {[%emt 0:00:02]} Rd7 {[%emt 0:00:07]} 25. Rxd7 {[%emt 0:00:04]} Nxd7 {[%emt 0:00:02]} 26. Kf2 {[%emt 0:00:01]} Ne5 {[%emt 0:00:06]} 27. Ke3 {[%emt 0:00:04]} f6 {[%emt 0:00:09]} 28. h3 {[%emt 0:00:01]} Kf7 {[%emt 0:00:02]} 29. f4 {[%emt 0:00:02]} Nc6 {[%emt 0:00:02]} 30. Bc3 {[%emt 0:00:01]} Ke7 {[%emt 0:00:03]} 31. a3 {[%emt 0:00:02]} Kd6 {[%emt 0:00:19]} 32. b4 {[%emt 0:00:02]} e5 {[%emt 0:00:14]} 33. fxe5+ {[%emt 0:00:09]} Nxe5 {[%emt 0:00:01]} 34. c5+ {[%emt 0:00:06]} Ke6 {[%emt 0:00:03]} 35. Bxe5 {[%emt 0:00:06]} Kxe5 {[%emt 0:00:02]} 36. Kd3 {[%emt 0:00:10]} g5 {[%emt 0:00:07]} 37. g4 {[%emt 0:00:01]} Kd5 {[%emt 0:00:13]} 38. a4 {[%emt 0:00:03]} a6 {[%emt 0:00:08]} 39. Kc3 {[%emt 0:00:06]} a5 {[%emt 0:00:15]} 40. Kb3 {[%emt 0:00:07]} Kd4 {[%emt 0:00:04]} 41. c6 {[%emt 0:00:12]} bxc6 {[%emt 0:00:01]} 42. bxa5 {[%emt 0:00:01]} Kc5 {[%emt 0:00:02]} 43. a6 {[%emt 0:00:06]} Kb6 {[%emt 0:00:00]} 44. Kb4 {[%emt 0:00:01]} c5+ {[%emt 0:00:02]} 45. Kc4 {[%emt 0:00:02]} Kxa6 {[%emt 0:00:00]} 46. Kxc5 {[%emt 0:00:01]} Ka5 {[%emt 0:00:01]} 47. Kd6 {[%emt 0:00:02]} Kxa4 {[%emt 0:00:02]} 48. Ke6 {[%emt 0:00:01]} Kb4 {[%emt 0:00:02]} 49. Kxf6 {[%emt 0:00:01]} Kc4 {[%emt 0:00:01]} 50. Kg6 {[%emt 0:00:01]} Kd4 {[%emt 0:00:01]} 51. Kxh6 {[%emt 0:00:01]} Ke5 {[%emt 0:00:01]} 52. Kxg5 {[%emt 0:00:01]} Kd5 1-0

[Event "RUS-chT Blitz Women 2018"]
[Site "Sochi"]
[Date "2018.10.10"]
[Round "8"]
[White "Ershova, Margarita"]
[Black "Sarvarova, Alisa"]
[Result "1-0"]
[ECO "D00"]
[WhiteElo "1511"]
[BlackElo "1216"]
[Annotator "NA"]
[PlyCount "69"]
[EventDate "2018.10.10"]
[EventType "swiss"]
[EventCountry "RUS"]
[SourceTitle "playchess.com"]
[Source "ChessBase"]
[SourceQuality "1"]
[TimeControl "180+2"]

1. d4 {[%emt 0:00:00]} d5 {[%emt 0:00:50]} 2. Nc3 {[%emt 0:00:01]} Nf6 {[%emt 0:00:03]} 3. Bf4 {[%emt 0:00:01]} Nc6 {[%emt 0:00:03]} 4. Nb5 {[%emt 0:00:01]} e5 {[%emt 0:00:17]} 5. dxe5 {[%emt 0:00:02]} Nxe5 {[%emt 0:00:01]} 6. Bxe5 {[%emt 0:00:02]} Bd6 {[%emt 0:00:07]} 7. Nxd6+ {[%emt 0:00:04]} cxd6 {[%emt 0:00:02]} 8. Bxf6 {[%emt 0:00:15]} Qxf6 {[%emt 0:00:05]} 9. c3 {[%emt 0:00:01]} O-O {[%emt 0:00:10]} 10. Qxd5 {[%emt 0:00:02]} Re8 {[%emt 0:00:03]} 11. e3 {[%emt 0:00:02]} Qg6 {[%emt 0:00:06]} 12. Bd3 {[%emt 0:00:09]} Qg4 {[%emt 0:00:09]} 13. Qf3 {[%emt 0:00:03]} Qe6 {[%emt 0:00:06]} 14. Ne2 {[%emt 0:00:03]} Bd7 {[%emt 0:00:11]} 15. O-O {[%emt 0:00:07]} Bc6 {[%emt 0:00:02]} 16. Qg3 {[%emt 0:00:06]} Qd5 {[%emt 0:00:10]} 17. Nf4 {[%emt 0:00:10]} Qe5 {[%emt 0:00:09]} 18. Bc2 {[%emt 0:00:07]} Rad8 {[%emt 0:00:07]} 19. Rad1 {[%emt 0:00:03]} Qb5 {[%emt 0:00:11]} 20. Bb3 {[%emt 0:00:07]} Qe5 {[%emt 0:00:04]} 21. Ne2 {[%emt 0:00:08]} Qe4 {[%emt 0:00:12]} 22. Nf4 {[%emt 0:00:12]} Qf5 {[%emt 0:00:05]} 23. Rd2 {[%emt 0:00:09]} Re7 {[%emt 0:00:06]} 24. Rfd1 {[%emt 0:00:03]} Red7 {[%emt 0:00:01]} 25. Bd5 {[%emt 0:00:06]} Bxd5 {[%emt 0:00:16]} 26. Rxd5 {[%emt 0:00:02]} Rc7 {[%emt 0:00:10]} 27. Rxf5 {[%emt 0:00:02]} h6 {[%emt 0:00:02]} 28. Nd5 {[%emt 0:00:06]} Rcd7 {[%emt 0:00:02]} 29. Nf6+ {[%emt 0:00:02]} Kf8 {[%emt 0:00:03]} 30. Nxd7+ {[%emt 0:00:02]} Rxd7 {[%emt 0:00:01]} 31. Rxd6 {[%emt 0:00:02]} Rc7 {[%emt 0:00:03]} 32. Rd8+ {[%emt 0:00:06]} Ke7 {[%emt 0:00:01]} 33. Qxc7+ {[%emt 0:00:02]} Ke6 {[%emt 0:00:00]} 34. Re5+ {[%emt 0:00:01]} Kf6 {[%emt 0:00:02]} 35. Qd6# {[%emt 0:00:02]} 1-0

[Event "RUS-chT Blitz Women 2018"]
[Site "Sochi"]
[Date "2018.10.10"]
[Round "8"]
[White "Khusneeva, Alina"]
[Black "Fairuzova, Zulfiiya"]
[Result "0-1"]
[ECO "C41"]
[WhiteElo "1066"]
[BlackElo "1847"]
[Annotator "NA"]
[PlyCount "62"]
[EventDate "2018.10.10"]
[EventType "swiss"]
[EventCountry "RUS"]
[SourceTitle "playchess.com"]
[Source "ChessBase"]
[SourceQuality "1"]
[TimeControl "180+2"]

1. e4 {[%emt 0:00:52]} e5 {[%emt 0:00:00]} 2. Nf3 {[%emt 0:00:02]} d6 {[%emt 0:00:01]} 3. Bb5+ {[%emt 0:00:06]} Bd7 {[%emt 0:00:01] C41: Philidor Defence} (3... Nd7 4. O-O a6 5. Bxd7+ Bxd7 6. Re1 c5 7. c3 c4 8. b3 b5 9. d3 cxd3 10. Qxd3 h6 11. Ba3 {0-1 (41) Ma,Q (2475)-Zeng,C (2400) Chennai 2012}) 4. Bxd7+ {[%emt 0:00:03]} Qxd7 {[%emt 0:00:05]} 5. O-O {[%emt 0:00:04]} Nf6 {[%emt 0:00:01]} 6. d3 {[%emt 0:00:02]} Be7 {[%emt 0:00:01]} 7. c3 $146 {[%emt 0:00:02]} ({Predecessor:} 7. d4 exd4 8. Nxd4 Nxe4 9. Qe1 Nf6 10. Bg5 O-O 11. Bxf6 Bxf6 {0-1 (55) Sobreviela Batlle,A-Vicente Bessen,K (1558) Santa Eulalia de Roncana 2008}) 7... O-O {[%emt 0:00:04]} 8. Re1 {[%emt 0:00:01]} Nc6 {[%emt 0:00:04]} 9. d4 {[%emt 0:00:08]} Rfe8 {[%emt 0:00:12]} 10. Nbd2 {[%emt 0:00:11]} Bf8 {[%emt 0:00:08]} 11. Qc2 {[%emt 0:00:31]} a6 {[%emt 0:00:41]} 12. Nf1 {[%emt 0:00:06]} g6 {[%emt 0:00:08]} 13. Ng3 {[%emt 0:00:10]} Bg7 {[%emt 0:00:01]} 14. Rd1 {[%emt 0:00:14]} Qe7 {[%emt 0:00:06]} 15. d5 {[%emt 0:00:10]} Nb8 {[%emt 0:00:22]} 16. c4 {[%emt 0:00:13]} Nbd7 {[%emt 0:00:01]} 17. b3 {[%emt 0:00:07]} a5 {[%emt 0:00:03]} 18. Bb2 {[%emt 0:00:05]} Nc5 {[%emt 0:00:01]} 19. Re1 {[%emt 0:00:06]} Rf8 {[%emt 0:00:20]} 20. h3 $11 {[%emt 0:00:03]} Nfd7 {[%emt 0:00:10]} 21. Nd2 {[%emt 0:00:10]} f6 {[%emt 0:00:07]} 22. Nf3 {[%emt 0:00:02]} Qf7 {[%emt 0:00:02]} 23. Nd2 {[%emt 0:00:02]} f5 {[%emt 0:00:01]} 24. exf5 {[%emt 0:00:06]} gxf5 {[%emt 0:00:01]} 25. Nf3 {[%emt 0:00:04]} f4 {[%emt 0:00:12]} 26. Ne4 {[%emt 0:00:02]} Nxe4 {[%emt 0:00:01]} 27. Qxe4 {[%emt 0:00:01]} Nc5 {[%emt 0:00:01]} 28. Qc2 {[%emt 0:00:05]} Bf6 {[%emt 0:00:10]} 29. Rad1 {[%emt 0:00:05]} Kh8 {[%emt 0:00:01]} 30. Kh1 {[%emt 0:00:02]} Rg8 {[%emt 0:00:02]} 31. Kg1 {[%emt 0:00:02]} Qg7 {[%emt 0:00:01]} 0-1

[Event "RUS-chT Blitz Women 2018"]
[Site "Sochi"]
[Date "2018.10.10"]
[Round "10"]
[White "Charochkina, Daria"]
[Black "Vifleemskaia, Svetlana"]
[Result "1-0"]
[ECO "A40"]
[WhiteElo "2344"]
[BlackElo "2030"]
[Annotator "ChessBase"]
[PlyCount "95"]
[EventDate "2018.10.10"]
[EventType "swiss"]
[EventCountry "RUS"]
[SourceTitle "playchess.com"]
[Source "ChessBase"]
[SourceQuality "1"]
[TimeControl "180+2"]

1. d4 {[%emt 0:00:00]} Nc6 {[%emt 0:00:00]} 2. g3 {[%emt 0:00:09]} d5 {[%emt 0:00:01]} 3. Bg2 {[%emt 0:00:01]} Bf5 {[%emt 0:00:02]} 4. Nf3 {[%emt 0:00:05]} Qd7 {[%emt 0:00:01]} 5. c3 {[%emt 0:00:06]} f6 {[%emt 0:00:11]} 6. Bf4 {[%emt 0:00:03]} g5 {[%emt 0:00:07]} 7. Be3 {[%emt 0:00:02]} Bh3 {[%emt 0:00:29]} 8. Bxh3 {[%emt 0:00:05]} Qxh3 {[%emt 0:00:02]} 9. Qb3 {[%emt 0:00:01]} O-O-O {[%emt 0:00:04]} 10. Nbd2 {[%emt 0:00:04]} Nh6 {[%emt 0:00:32]} 11. O-O-O {[%emt 0:00:19]} Nf5 {[%emt 0:00:20]} 12. Nf1 {[%emt 0:00:02]} g4 {[%emt 0:00:15]} 13. Ne1 {[%emt 0:00:07]} Bh6 {[%emt 0:00:07]} 14. Bxh6 {[%emt 0:00:04]} Qxh6+ {[%emt 0:00:03]} 15. Kb1 {[%emt 0:00:03]} Qg6 {[%emt 0:00:05]} 16. Ka1 {[%emt 0:00:03]} Nd6 {[%emt 0:00:05]} 17. Qxd5 {[%emt 0:00:12]} Ne4 {[%emt 0:00:06]} 18. Qe6+ {[%emt 0:00:01]} Kb8 {[%emt 0:00:01]} 19. Nd3 {[%emt 0:00:03]} Rd6 {[%emt 0:00:10]} 20. Qb3 {[%emt 0:00:01]} Rhd8 {[%emt 0:00:15]} 21. Ne3 {[%emt 0:00:06]} e5 {[%emt 0:00:19]} 22. dxe5 {[%emt 0:00:05]} fxe5 {[%emt 0:00:05]} 23. Nc4 {[%emt 0:00:05]} Rd5 {[%emt 0:00:15]} 24. Ndxe5 {[%emt 0:00:18]} Nxe5 {[%emt 0:00:06]} 25. Nxe5 {[%emt 0:00:02]} Qd6 {[%emt 0:00:04]} 26. Rxd5 {[%emt 0:00:34]} Qxd5 {[%emt 0:00:01]} 27. Qxd5 {[%emt 0:00:02]} Rxd5 {[%emt 0:00:00]} 28. Nxg4 {[%emt 0:00:03]} Rd2 {[%emt 0:00:02]} 29. Re1 {[%emt 0:00:08]} h5 {[%emt 0:00:02]} 30. f3 {[%emt 0:00:02]} hxg4 {[%emt 0:00:04]} 31. fxe4 {[%emt 0:00:01]} c5 {[%emt 0:00:02]} 32. Kb1 {[%emt 0:00:03]} Kc7 {[%emt 0:00:00]} 33. Kc1 {[%emt 0:00:02]} Rd7 {[%emt 0:00:02]} 34. Rf1 {[%emt 0:00:06]} Rh7 {[%emt 0:00:01]} 35. Rf2 {[%emt 0:00:01]} Kd6 {[%emt 0:00:01]} 36. Kd2 {[%emt 0:00:02]} Ke5 {[%emt 0:00:02]} 37. Ke3 {[%emt 0:00:01]} b6 {[%emt 0:00:02]} 38. Rf4 {[%emt 0:00:09]} Rxh2 {[%emt 0:00:03]} 39. Rxg4 {[%emt 0:00:01]} Rh1 {[%emt 0:00:04]} 40. Rg7 {[%emt 0:00:06]} Rb1 {[%emt 0:00:03]} 41. b3 {[%emt 0:00:04]} a5 {[%emt 0:00:02]} 42. Rb7 {[%emt 0:00:02]} Rb2 {[%emt 0:00:03]} 43. Rxb6 {[%emt 0:00:00]} Rxa2 {[%emt 0:00:01]} 44. Rb5 {[%emt 0:00:03]} Kd6 {[%emt 0:00:01]} 45. e5+ {[%emt 0:00:02]} Kc6 {[%emt 0:00:02]} 46. e6 {[%emt 0:00:09]} Ra1 {[%emt 0:00:06]} 47. Rxc5+ {[%emt 0:00:14]} Kd6 {[%emt 0:00:05]} 48. Re5 {[%emt 0:00:02]} 1-0

[Event "RUS-chT Blitz Women 2018"]
[Site "Sochi"]
[Date "2018.10.10"]
[Round "11"]
[White "Faizutdinova, Diana"]
[Black "Girshgorn, Maria"]
[Result "0-1"]
[ECO "A16"]
[WhiteElo "2061"]
[BlackElo "1949"]
[Annotator "NA RC"]
[PlyCount "116"]
[EventDate "2018.10.10"]
[EventType "swiss"]
[EventCountry "RUS"]
[SourceTitle "playchess.com"]
[Source "ChessBase"]
[SourceQuality "1"]
[TimeControl "180+2"]

1. c4 {[%emt 0:00:00]} Nf6 {[%emt 0:00:00]} 2. Nc3 {[%emt 0:00:01]} g6 {[%emt 0:00:00]} 3. g3 {[%emt 0:00:02]} Bg7 {[%emt 0:00:01]} 4. Bg2 {[%emt 0:00:01]} O-O {[%emt 0:00:02]} 5. d3 {[%emt 0:00:01]} d6 {[%emt 0:00:01]} 6. e3 {[%emt 0:00:04]} Nbd7 {[%emt 0:00:01]} 7. Nge2 {[%emt 0:00:02]} e5 {[%emt 0:00:02]} 8. O-O {[%emt 0:00:03]} a5 {[%emt 0:00:10]} 9. b3 {[%emt 0:00:04]} c6 {[%emt 0:00:13]} 10. d4 {[%emt 0:00:15]} Qe7 {[%emt 0:00:09]} 11. e4 {[%emt 0:00:30]} exd4 {[%emt 0:00:17]} 12. Nxd4 {[%emt 0:00:02]} Nc5 {[%emt 0:00:12]} 13. Re1 {[%emt 0:00:05]} Bg4 {[%emt 0:00:04]} 14. f3 {[%emt 0:00:04]} Bd7 {[%emt 0:00:04]} 15. Bb2 {[%emt 0:00:03]} Rfe8 {[%emt 0:00:31]} 16. Qd2 {[%emt 0:00:04]} Rad8 {[%emt 0:00:07]} 17. Rad1 {[%emt 0:00:05]} Be6 {[%emt 0:00:16]} 18. Nxe6 {[%emt 0:00:10]} Nxe6 {[%emt 0:00:08]} 19. Ne2 {[%emt 0:00:04]} Qc7 {[%emt 0:00:22]} 20. Bc3 {[%emt 0:00:03]} a4 {[%emt 0:00:11]} 21. b4 {[%emt 0:00:08]} b5 {[%emt 0:00:05]} 22. Qb2 {[%emt 0:00:07]} Nd7 {[%emt 0:00:06]} 23. Bxg7 {[%emt 0:00:07]} Nxg7 {[%emt 0:00:02]} 24. cxb5 {[%emt 0:00:07]} cxb5 {[%emt 0:00:03]} 25. Nf4 {[%emt 0:00:04]} Nb6 {[%emt 0:00:18]} 26. h4 {[%emt 0:00:15]} Ne6 {[%emt 0:00:06]} 27. Nd5 {[%emt 0:00:13]} Nxd5 {[%emt 0:00:04]} 28. Rxd5 {[%emt 0:00:02]} Qa7+ {[%emt 0:00:07]} 29. Kh2 {[%emt 0:00:01]} Nc7 {[%emt 0:00:04]} 30. Rdd1 {[%emt 0:00:06]} Qb6 {[%emt 0:00:04]} 31. Qd4 {[%emt 0:00:02]} Qxd4 {[%emt 0:00:06]} 32. Rxd4 {[%emt 0:00:02]} d5 {[%emt 0:00:01]} 33. Red1 {[%emt 0:00:01]} Rd6 {[%emt 0:00:04]} 34. exd5 {[%emt 0:00:03]} Red8 {[%emt 0:00:02]} 35. f4 {[%emt 0:00:01]} Kg7 {[%emt 0:00:02]} 36. a3 {[%emt 0:00:01]} f5 {[%emt 0:00:02]} 37. R4d2 {[%emt 0:00:03]} Kf6 {[%emt 0:00:02]} 38. Re1 {[%emt 0:00:06]} Nxd5 {[%emt 0:00:03]} 39. Red1 {[%emt 0:00:15]} Ke6 {[%emt 0:00:02]} 40. Re1+ {[%emt 0:00:05]} Kf6 {[%emt 0:00:00]} 41. Rc2 {[%emt 0:00:16]} Nb6 {[%emt 0:00:04]} 42. Rc5 {[%emt 0:00:02]} Nc4 {[%emt 0:00:03]} 43. Rxb5 {[%emt 0:00:03]} Nxa3 {[%emt 0:00:01]} 44. Ra5 {[%emt 0:00:02]} Rd2 {[%emt 0:00:02]} 45. Rxa4 {[%emt 0:00:02]} Ra2 {[%emt 0:00:02]} 46. Ra6+ {[%emt 0:00:02]} Kf7 {[%emt 0:00:01]} 47. Rc1 {[%emt 0:00:13]} Ke8 {[%emt 0:00:04]} 48. Rc7 {[%emt 0:00:03]} Ra1 {[%emt 0:00:02]} 49. Bc6+ {[%emt 0:00:01]} Kf8 {[%emt 0:00:01]} 50. Bd5 {[%emt 0:00:08]} Nc2 {[%emt 0:00:01]} 51. Rf6+ {[%emt 0:00:03]} Ke8 {[%emt 0:00:02]} 52. Bf7+ {[%emt 0:00:06]} Kf8 {[%emt 0:00:00]} 53. Bb3+ {[%emt 0:00:05]} Ke8 {[%emt 0:00:01]} 54. Bf7+ {[%emt 0:00:04]} Kf8 {[%emt 0:00:01]} 55. Bxg6+ {[%emt 0:00:03]} Kg8 {[%emt 0:00:01]} 56. Bf7+ {[%emt 0:00:01]} Kh8 {[%emt 0:00:01]} 57. Be6 {[%emt 0:00:03]} Rd2+ {[%emt 0:00:02]} 58. Kh3 {[%emt 0:00:03]} Rh1# {[%emt 0:00:01]} 0-1

[Event "RUS-chT Blitz Women 2018"]
[Site "Sochi"]
[Date "2018.10.10"]
[Round "13"]
[White "Mukhina, Jana"]
[Black "Shestakova, Ekaterina"]
[Result "1-0"]
[ECO "B31"]
[WhiteElo "2072"]
[BlackElo "1886"]
[Annotator "NA RC"]
[PlyCount "143"]
[EventDate "2018.10.10"]
[EventType "swiss"]
[EventCountry "RUS"]
[SourceTitle "playchess.com"]
[Source "ChessBase"]
[SourceQuality "1"]
[TimeControl "180+2"]

1. e4 {[%emt 0:00:00]} c5 {[%emt 0:00:00]} 2. Nf3 {[%emt 0:00:00]} Nc6 {[%emt 0:00:00]} 3. Bb5 {[%emt 0:00:00]} g6 {[%emt 0:00:02]} 4. Bxc6 bxc6 {[%emt 0:00:01]} 5. O-O {[%emt 0:00:02]} Bg7 {[%emt 0:00:01]} 6. Re1 {[%emt 0:00:00]} Nf6 {[%emt 0:00:09]} 7. e5 {[%emt 0:00:01]} Nd5 {[%emt 0:00:01]} 8. c4 {[%emt 0:00:00]} Nc7 {[%emt 0:00:01]} 9. d4 {[%emt 0:00:01]} cxd4 {[%emt 0:00:01]} 10. Qxd4 {[%emt 0:00:02]} d5 {[%emt 0:00:02]} 11. Qh4 {[%emt 0:00:25]} O-O {[%emt 0:00:16]} 12. Bh6 {[%emt 0:00:08]} Ne6 {[%emt 0:00:12]} 13. cxd5 {[%emt 0:00:33]} cxd5 {[%emt 0:00:07]} 14. Ng5 {[%emt 0:00:03]} Nxg5 {[%emt 0:00:06]} 15. Bxg5 {[%emt 0:00:01]} f6 {[%emt 0:00:14]} 16. exf6 {[%emt 0:00:03]} exf6 {[%emt 0:00:03]} 17. Bh6 {[%emt 0:00:30]} Bf5 {[%emt 0:00:10]} 18. Bxg7 {[%emt 0:00:13]} Kxg7 {[%emt 0:00:01]} 19. Qd4 {[%emt 0:00:12]} Re8 {[%emt 0:00:52]} 20. Nc3 {[%emt 0:00:05]} Qd7 {[%emt 0:00:18]} 21. Qxd5 {[%emt 0:00:50]} Qxd5 {[%emt 0:00:12]} 22. Nxd5 {[%emt 0:00:01]} Rad8 {[%emt 0:00:07]} 23. Ne3 {[%emt 0:00:01]} Be6 {[%emt 0:00:11]} 24. Rad1 {[%emt 0:00:09]} Bxa2 {[%emt 0:00:11]} 25. Rxd8 {[%emt 0:00:16]} Rxd8 26. Ra1 {[%emt 0:00:00]} Bf7 {[%emt 0:00:06]} 27. Rxa7 {[%emt 0:00:06]} Rb8 {[%emt 0:00:04]} 28. Nd1 {[%emt 0:00:08]} Rb3 {[%emt 0:00:02]} 29. h3 {[%emt 0:00:01]} f5 {[%emt 0:00:02]} 30. Ra1 {[%emt 0:00:03]} Bd5 {[%emt 0:00:05]} 31. Ne3 {[%emt 0:00:01]} Bf7 {[%emt 0:00:05]} 32. Nd1 {[%emt 0:00:03]} Bd5 {[%emt 0:00:01]} 33. Rc1 {[%emt 0:00:00]} Bf7 {[%emt 0:00:03]} 34. Rc2 {[%emt 0:00:01]} Kf6 {[%emt 0:00:03]} 35. Rd2 {[%emt 0:00:01]} Kg7 {[%emt 0:00:02]} 36. Nc3 {[%emt 0:00:01]} h6 {[%emt 0:00:02]} 37. f4 {[%emt 0:00:01]} g5 {[%emt 0:00:04]} 38. g3 {[%emt 0:00:00]} gxf4 {[%emt 0:00:04]} 39. gxf4 {[%emt 0:00:01]} h5 {[%emt 0:00:03]} 40. Kf2 {[%emt 0:00:05]} Kf6 {[%emt 0:00:03]} 41. Rd6+ {[%emt 0:00:01]} Be6 {[%emt 0:00:02]} 42. Rd2 {[%emt 0:00:03]} Bf7 {[%emt 0:00:01]} 43. Kg3 {[%emt 0:00:01]} Kg7 {[%emt 0:00:04]} 44. Kh4 {[%emt 0:00:01]} Rb4 {[%emt 0:00:03]} 45. Rf2 {[%emt 0:00:01]} Bg6 {[%emt 0:00:02]} 46. Kg5 {[%emt 0:00:10]} Rb3 {[%emt 0:00:03]} 47. Rd2 {[%emt 0:00:02]} Rb7 {[%emt 0:00:02]} 48. Ne2 {[%emt 0:00:02]} Kh7 {[%emt 0:00:03]} 49. Nd4 {[%emt 0:00:02]} Kg7 {[%emt 0:00:03]} 50. Nxf5+ {[%emt 0:00:01]} Bxf5 {[%emt 0:00:02]} 51. Kxf5 {[%emt 0:00:01]} Rb5+ {[%emt 0:00:01]} 52. Ke4 {[%emt 0:00:01]} Kf6 {[%emt 0:00:02]} 53. Rd6+ {[%emt 0:00:01]} Ke7 {[%emt 0:00:02]} 54. Rh6 {[%emt 0:00:03]} Rxb2 {[%emt 0:00:02]} 55. Rxh5 {[%emt 0:00:02]} Re2+ {[%emt 0:00:03]} 56. Kf5 {[%emt 0:00:01]} Kf7 {[%emt 0:00:03]} 57. Rh7+ {[%emt 0:00:00]} Kg8 {[%emt 0:00:01]} 58. Ra7 {[%emt 0:00:05]} Rg2 {[%emt 0:00:03]} 59. h4 {[%emt 0:00:02]} Rh2 {[%emt 0:00:02]} 60. Kg5 {[%emt 0:00:03]} Rg2+ {[%emt 0:00:01]} 61. Kf6 {[%emt 0:00:01]} Rh2 {[%emt 0:00:03]} 62. Ra8+ {[%emt 0:00:02]} Kh7 {[%emt 0:00:00]} 63. f5 {[%emt 0:00:01]} Rxh4 {[%emt 0:00:03]} 64. Kf7 {[%emt 0:00:03]} Rf4 {[%emt 0:00:03]} 65. f6 {[%emt 0:00:01]} Kh6 {[%emt 0:00:03]} 66. Ra1 {[%emt 0:00:07]} Kg5 {[%emt 0:00:05]} 67. Rg1+ {[%emt 0:00:01]} Kh6 {[%emt 0:00:01]} 68. Ke7 {[%emt 0:00:02]} Re4+ {[%emt 0:00:01]} 69. Kf8 {[%emt 0:00:01]} Rf4 {[%emt 0:00:03]} 70. f7 {[%emt 0:00:01]} Re4 {[%emt 0:00:03]} 71. Rg2 {[%emt 0:00:04]} Re5 {[%emt 0:00:01]} 72. Kg8 {[%emt 0:00:02]} 1-0